Cogmind - Beta 15 @@@ ROGUE MODE // 2025.07.17 @ 14:15:17 Player: Selene Result: Destroyed by P-80 Master with Gamma Rifle Performance ------------- Evolutions (8) 4000 Regions Visited (11) 2200 Robots Destroyed (91) 455 Value Destroyed (3371) 3371 Prototype IDs (20) 400 Alien Tech Used (0) 0 Bonus (800) 800 TOTAL SCORE: 11226 Bonus ------- Registered with UFD 300 Met Optimus in HQ 500 Cogmind --------- Core Integrity 0/1450 Matter 52/300 Energy 99/100 System Corruption 18% Temperature Cool (0) Movement Core (50) Location -2/Research Parts ------- > --- POWER (2) -------- (None) > --- PROPULSION (4) --- (None) > --- UTILITY (15) ----- (None) > --- WEAPON (2) ------- (None) > --- INVENTORY (5) ---- Medium Matter Pod (100) Gamma Rifle Dispersion Rifle Enhanced Nova Cannon Enhanced Hardcell Cannon Peak State ------------ > --- POWER ------------ Enhanced Fission Core Light Quantum Reactor > --- PROPULSION ------- Advanced Medium Treads Centrium Leg Armored Huge Wheel > --- UTILITY ---------- Advanced Heat Sink High-capacity Storage Unit Improved Signal Interpreter Advanced Terrain Scan Processor Improved Melee Analysis Suite Improved Melee Analysis Suite Advanced Target Analyzer Advanced Target Analyzer Advanced Target Analyzer Core Analyzer Advanced Recoil Stabilizer ECM Suite Layered Heavy Armor Plating Advanced System Shield > --- WEAPON ----------- KE Penetrator Railgun > --- INVENTORY -------- Micro Antimatter Reactor Micro Antimatter Reactor Wheel Advanced Heat Sink Improved Energy Well Medium Matter Pod Advanced Recalibrator Gamma Rifle Dispersion Rifle Dispersion Rifle Long-range Proton Cannon Long-range Proton Cannon HERF Cannon Enhanced Nova Cannon Railgun Linear Accelerator Linear Accelerator Linear Accelerator Enhanced Hardcell Cannon Enhanced Hardcell Cannon [Rating: 137] Favorites ----------- Power Enhanced Fission Core Engine Ion Engine Power Core Enhanced Fission Core Reactor Light Quantum Reactor Propulsion Compact Wheel Treads Overtuned Treads Leg Flexi-carbon Leg Wheel Compact Wheel Utility High-capacity Storage Unit Device Improved Terrain Scanner Storage High-capacity Storage Unit Processor Improved Signal Interpreter Hackware Improved Hacking Suite Protection Light Armor Plating Weapon Plasma Sword Energy Gun Improved EM Shotgun Energy Cannon Light EM Pulse Cannon Ballistic Gun KE Penetrator Ballistic Cannon Enhanced Hardcell Cannon Launcher Rocket Launcher Slashing Weapon Plasma Sword Build | -11 -10 -10 -10 -7 -7 -5 -5 -5 -4 -3 -2 ------- Run | Yrd Mat Min Sub Rec Scr Fac Upp Upp Fac Res Res Slots Evolved 16 | . . . . . . 10 . . 2 2 2 Power 1 | . . . . . . 1 . . . . . Propulsion 2 | . . . . . . 2 . . . . . Utility 13 | . . . . . . 7 . . 2 2 2 Weapon . | . . . . . . . . . . . . Parts Attached 134 | 7 14 6 1 . 4 47 13 4 10 8 20 Power 19 | 1 1 1 1 . 1 6 3 1 . . 4 Engine 6 | 1 1 1 1 . 1 1 . . . . . Core 8 | . . . . . . 5 2 1 . . . Reactor 5 | . . . . . . . 1 . . . 4 Propulsion 29 | 2 2 . . . 1 11 . . 4 5 4 Treads 8 | . . . . . . 4 . . . 1 3 Leg 10 | . . . . . . 3 . . 4 2 1 Wheel 11 | 2 2 . . . 1 4 . . . 2 . Hover . | . . . . . . . . . . . . Flight . | . . . . . . . . . . . . Utility 61 | 1 6 3 . . 2 23 10 1 6 2 7 Device 23 | . 1 . . . . 14 2 1 2 1 2 Storage 5 | 1 2 . . . 1 . . . 1 . . Processor 15 | . . 1 . . . 4 4 . 2 . 4 Hackware 5 | . . . . . . 2 2 . 1 . . Protection 13 | . 3 2 . . 1 3 2 . . 1 1 Artifact . | . . . . . . . . . . . . Weapon 25 | 3 5 2 . . . 7 . 2 . 1 5 Energy Gun 8 | 3 2 . . . . 3 . . . . . Energy Cannon 5 | . 1 . . . . 1 . 1 . . 2 Ballistic Gun 5 | . . . . . . 1 . 1 . 1 2 Ballistic Cannon 1 | . . . . . . . . . . . 1 Launcher 5 | . 2 2 . . . 1 . . . . . Special Weapon . | . . . . . . . . . . . . Impact Weapon . | . . . . . . . . . . . . Slashing Weapon 1 | . . . . . . 1 . . . . . Piercing Weapon . | . . . . . . . . . . . . Special Melee Weapon . | . . . . . . . . . . . . Unidentified Prototypes 6 | . 1 . . . . 4 . . 1 . . Corrupted Parts 2 | . . . . . . 2 . . . . . System Corruption 19 | . . . . . . 19 . . . . . Parts Lost 71 | . 2 1 . . . 15 8 1 4 16 24 Power 8 | . . . . . . 1 . . 1 2 4 Propulsion 18 | . . . . . . 5 . . 2 6 5 Utility 31 | . 1 . . . . 7 7 1 . 6 9 Weapon 14 | . 1 1 . . . 2 1 . 1 2 6 Highest Loss Streak 24 | . 1 1 . . . 5 4 1 4 16 24 To Critical Strikes 3 | . . . . . . . 2 . . . 1 Average Backups 17 | 4 13 19 18 18 20 16 18 18 18 15 16 Power 1 | . . 1 2 2 1 . 2 2 2 1 . Propulsion 3 | 3 2 3 3 3 2 2 6 7 6 2 . Utility 6 | . 4 8 7 7 9 7 5 3 4 4 3 Weapon 5 | . 5 5 5 5 5 5 4 5 5 6 11 Tool/Special . | . . . . . . . . . . . . Unused Backups 61 | . 9 2 2 2 13 13 1 . 7 . 12 Power 6 | . . . . 1 2 2 1 . . . . Propulsion 12 | . 3 . 2 . 2 2 . . 3 . . Utility 15 | . 3 2 . 1 2 4 . . 1 . 2 Weapon 23 | . 3 . . . 4 3 . . 3 . 10 Tool/Special 5 | . . . . . 3 2 . . . . . Average Slot Usage (%) 88 | . 99 99 100 100 100 88 72 82 86 89 67 Engine 6 | . 14 14 14 14 14 2 . . . . . Core 4 | . . . . . . 6 6 10 10 7 3 Treads 3 | . . . . . . 13 . . . . 3 Leg 4 | . . . . . . 2 11 11 10 17 . Wheel 12 | . 28 28 28 28 28 2 . . . . 6 Device 7 | . 3 8 9 . . 14 5 9 14 13 7 Storage 8 | . 14 14 14 14 14 5 5 5 6 4 3 Processor 10 | . . . . . . 13 19 23 22 23 25 Hackware 3 | . . . . . . 5 5 5 10 8 3 Protection 6 | . 10 6 4 14 14 5 4 2 . 3 3 Energy Gun 8 | . 27 22 14 14 14 2 . . . . . Energy Cannon 3 | . . 5 6 13 14 1 . . . . . Ballistic Gun 1 | . . . . . . 1 3 4 4 2 5 Slashing Weapon 2 | . . . . . . 4 5 5 5 3 . Peak Build Rating 137 | 7 10 14 15 15 24 96 98 96 108 116 137 Average Rating 57 | 5 8 11 14 15 19 79 85 92 103 101 94 On Entrance 39 | . 7 9 14 15 15 24 86 82 96 85 44 Naked Turns 33 | . . . . . . . . . . . 33 Heaviest Build 120 | 12 54 55 55 55 101 120 89 99 74 82 103 Greatest Support 94 | 32 32 32 32 32 32 94 70 70 73 91 38 Greatest Overweight (x) 6 | . 1 1 1 1 3 6 1 1 1 1 3 Average Overweight (x) . | . . 1 1 1 1 . . . . . 1 Largest Inventory Capacity 25 | 8 20 20 20 20 25 25 20 20 20 20 20 Average Capacity 19 | 7 14 20 20 20 22 20 20 20 20 20 19 Most Carried 25 | 8 20 20 20 20 25 25 20 20 20 19 20 Average Carried 19 | 4 13 19 19 19 21 20 19 18 19 15 16 Final Capacity 25 | 8 20 20 20 20 25 20 20 20 20 20 5 Final Carried 25 | 8 20 19 20 19 25 20 19 20 16 14 5 Class Distribution -------------------- 66% | Mutant 15% | Derelict-Mutant 12% | Hacker-Mutant 4% | Scavenger-Mutant Dominant Class ---------------- Mutant | -10/Materials Mutant | -10/Mines Mutant | -10/Subcaves Mutant | -7/Recycling Mutant | -7/Scraptown Derelict-Mutant | -5/Factory Mutant | -5/Upper Caves Mutant | -5/Upper Caves Hacker-Mutant | -4/Factory Hacker-Mutant | -3/Research Mutant | -2/Research Resources | -11 -10 -10 -10 -7 -7 -5 -5 -5 -4 -3 -2 ----------- Run | Yrd Mat Min Sub Rec Scr Fac Upp Upp Fac Res Res Matter Collected 3561 | 253 379 176 267 . 239 906 580 210 150 201 200 Remotely 617 | . . . . . . . 125 210 85 197 . Salvage Created 4197 | 148 600 283 135 . . 1559 427 155 80 181 629 Parts 220 | 7 34 22 12 . . 75 16 7 3 10 34 Haulers Intercepted 1 | . 1 . . . . . . . . . . Recyclers Shooed 5 | . . 1 . . . 2 . . . . 2 Parts Field Recycled . | . . . . . . . . . . . . Retrieved Matter . | . . . . . . . . . . . . Parts Self-Destructed 37 | . . . 9 . . . 24 4 . . . Prevented 14 | . . . . . . . 12 2 . . . Kills | -11 -10 -10 -10 -7 -7 -5 -5 -5 -4 -3 -2 ------- Run | Yrd Mat Min Sub Rec Scr Fac Upp Upp Fac Res Res Combat Hostiles Destroyed 66 | . 16 10 6 . . 17 5 2 1 3 6 Melee 12 | . . . . . . 9 . . 1 2 . Guns 24 | . 13 1 1 . . . 1 2 . . 6 Cannons 4 | . . 2 . . . 2 . . . . . AOE 19 | . 3 7 5 . . 1 2 . . 1 . Classes Destroyed 17 | 2 5 . 2 . . 5 3 . . . . Worker 7 | . 1 2 . . . 3 . . . 1 . Builder 1 | . . . . . . 1 . . . . . Tunneler 3 | 3 . . . . . . . . . . . Hauler 1 | . 1 . . . . . . . . . . Recycler 6 | 1 . 1 . . . 3 . . . . 1 Minesweeper 1 | . . . . . . . 1 . . . . Operator 1 | . . . . . . 1 . . . . . Turret 2 | . . . 2 . . . . . . . . Watcher 3 | . 2 . . . . 1 . . . . . Swarmer 16 | . 6 6 2 . . . . . . 2 . Grunt 20 | . 10 4 . . . 3 1 2 . . . Brawler 3 | . . . . . . . 2 . . . 1 Duelist 1 | . . . . . . . 1 . . . . Sentry 6 | . . . . . . 2 1 . 1 1 1 Hunter 6 | . . . . . . 5 . . . . 1 Programmer 10 | . . . . . . 7 . . . . 3 Subdweller 4 | . . . 4 . . . . . . . . Best Kill Streak 6 | 4 4 6 4 . . 4 3 1 1 1 4 Combat Bots Only 4 | . 4 4 4 . . 2 3 1 1 1 4 Max Kills in Single Turn 3 | 1 2 3 2 . . 1 2 1 1 1 1 Gunslinging 1 | . 1 . . . . . . . . . . Exploded 3 | . 2 3 2 . . 1 2 . . 1 . Melee 1 | . . . . . . 1 . . 1 1 . Uniques/NPCs Destroyed . | . . . . . . . . . . . . Combat | -11 -10 -10 -10 -7 -7 -5 -5 -5 -4 -3 -2 -------- Run | Yrd Mat Min Sub Rec Scr Fac Upp Upp Fac Res Res Hostile Shots Fired 956 | . 59 28 17 . . 216 69 47 75 189 256 Missed 307 | . 17 11 12 . . 53 31 15 30 70 68 Hits 649 | . 42 17 5 . . 163 38 32 45 119 188 Melee 7 | . . . . . . . 6 . . . 1 Projectile 642 | . 42 17 5 . . 163 32 32 45 119 187 AOE 4 | . . . . . . 2 . . 2 . . Critical Strikes 36 | . 3 . . . . 5 5 3 2 2 16 Part Disruptions 2 | . . . . . . 1 . . . . 1 Damage Taken 13627 | . 504 282 139 . . 2965 1111 609 1137 2197 4683 Core 2665 | . 97 39 94 . . 385 57 58 125 340 1470 Absorbed by Shields . | . . . . . . . . . . . . Redirected to Shielding 219 | . . . . . . 111 . . . 108 . Ignored by Resistances 36 | . . . . . . . . . . 36 . Regen/Repaired (Parts) 365 | . . . . . . 345 . . . 20 . Core Remaining (%) 64 | 100 . . . . 8 . . 50 89 73 . Volleys Fired 273 | 9 56 18 30 . . 59 10 39 12 3 37 Largest 2 | 2 2 2 1 . . 2 1 1 1 1 2 Hottest 169 | 100 100 101 45 . . 137 81 81 35 33 169 Shots Fired 391 | 18 104 29 30 . . 76 13 38 12 3 68 Gun 288 | 18 101 21 4 . . 33 7 31 12 1 60 Cannon 49 | . 1 2 . . . 30 1 7 . . 8 Launcher 54 | . 2 6 26 . . 13 5 . . 2 . Special . | . . . . . . . . . . . . Kinetic 121 | . . . . . . 6 7 31 12 1 64 Thermal 137 | 18 101 18 . . . . . . . . . Explosive 44 | . 2 6 26 . . 8 . . . 2 . Electromagnetic 89 | . 1 5 4 . . 62 6 7 . . 4 Robot Hit Streak 18 | 6 17 8 18 . . 15 3 4 3 . 8 Robot Miss Streak 7 | 1 5 2 3 . . 7 1 5 1 3 3 Penetration Max 1 | . . . . . . . . 1 1 . 1 Secondary Targets 2 | . 1 . . . . . . . . . 1 Max Gunslinging Chain 1 | . 1 . . . . . . . . . 1 Shots Hit Robots 277 | 14 70 15 7 . . 83 15 17 8 9 39 Core Hits 165 | 5 33 18 15 . . 45 9 7 3 7 23 Critical Kills 5 | . . . . . . . . 2 . . 3 Critical Parts Destroyed 5 | . . . . . . . . 5 . . . Critical Strikes 29 | . 8 . . . . 5 2 7 2 1 4 Burn 8 | . 8 . . . . . . . . . . Destroy 11 | . . . . . . . 1 7 . . 3 Corrupt 1 | . . . . . . . . . . . 1 Sever 9 | . . . . . . 5 1 . 2 1 . Melee Attacks 111 | . . . . . . 68 10 1 15 17 . Impact . | . . . . . . . . . . . . Slashing 111 | . . . . . . 68 10 1 15 17 . Piercing . | . . . . . . . . . . . . Sneak Attacks 10 | . . . . . . 7 2 . . 1 . Combat Hostiles . | . . . . . . . . . . . . Follow-up Attacks . | . . . . . . . . . . . . Damage Inflicted 9408 | 173 1066 775 751 . . 3511 913 214 259 566 1180 Guns 2865 | 173 911 155 65 . . 322 82 136 36 . 985 Cannons 827 | . . 52 . . . 474 33 78 . . 190 Explosions 2451 | . 155 568 686 . . 576 382 . . 84 . Melee 3260 | . . . . . . 2139 416 . 223 482 . Ramming 5 | . . . . . . . . . . . 5 Kinetic 1351 | . . . . . . . 82 136 36 . 1097 Thermal 1263 | 173 911 87 . . . 92 . . . . . Explosive 1776 | . 155 568 686 . . 283 . . . 84 . Electromagnetic 1753 | . . 120 65 . . 997 415 78 . . 78 Impact . | . . . . . . . . . . . . Slashing 3260 | . . . . . . 2139 416 . 223 482 . Piercing . | . . . . . . . . . . . . Highest Corruption 42 | . . . . . . 29 42 42 4 . 18 Average Corruption 27 | . . . . . . 17 40 42 2 . 5 Corruption Purged 10 | . . . . . . 10 . . . . . Corruption Blocked . | . . . . . . . . . . . . Effects 272 | . . . . . . 112 127 23 . . 10 Message Errors 75 | . . . . . . 28 37 6 . . 4 Matter Fused 55 | . . . . . . 22 27 5 . . 1 Heat Flow Errors 35 | . . . . . . 12 19 4 . . . Energy Discharges 35 | . . . . . . 17 15 3 . . . Parts Rejected 3 | . . . . . . 3 . . . . . Parts Fused 2 | . . . . . . . 2 . . . . Data Loss (minor) 30 | . . . . . . 15 13 1 . . 1 Data Loss (major) 11 | . . . . . . 4 6 . . . 1 Misfires 10 | . . . . . . 4 4 1 . . 1 Alerts 8 | . . . . . . 5 2 1 . . . Misdirections 3 | . . . . . . 1 1 . . . 1 Weapon Failures 5 | . . . . . . 1 1 2 . . 1 Overload Shots . | . . . . . . . . . . . . Overflow Damage 366 | . . . 4 . . 182 156 . . 24 . Projectiles 17 | . . . . . . 17 . . . . . Explosions 43 | . . . 4 . . 39 . . . . . Melee 306 | . . . . . . 126 156 . . 24 . Knockbacks 3 | . . . . . . . . . . . 3 Impact . | . . . . . . . . . . . . Kinetic 2 | . . . . . . . . . . . 2 Secondary 1 | . . . . . . . . . . . 1 Self-Inflicted Damage 227 | . 23 68 70 . . 40 2 . 22 . 2 Shots 9 | . 1 3 2 . . 1 1 . 1 . . Rammed 1 | . . . . . . . . . . . 1 Targets Rammed 1 | . . . . . . . . . . . 1 Kicked . | . . . . . . . . . . . . Crushed . | . . . . . . . . . . . . Highest Temperature 517 | 120 252 198 . . . 280 263 356 . . 517 Average Temperature 96 | 50 71 63 . . . 78 108 156 . . 176 Received Heat Transfer 1888 | . 255 108 6 . . 129 117 229 132 45 867 Effects 9 | . 1 . . . . 3 1 4 . . . Energy Bleed 1 | . . . . . . . 1 . . . . Interference 6 | . 1 . . . . 3 . 2 . . . Short Circuit 1 | . . . . . . . . 1 . . . Damage (minor) 1 | . . . . . . . . 1 . . . Siege Activations . | . . . . . . . . . . . . Martial Activations . | . . . . . . . . . . . . Shielding Activations . | . . . . . . . . . . . . Robots Disrupted . | . . . . . . . . . . . . Combat Hostiles . | . . . . . . . . . . . . Robots Corrupted 7 | . . . . . . 5 2 . . . . Combat Hostiles 7 | . . . . . . 5 2 . . . . Parts Fried 20 | . . . . . . 19 1 . . . . Impact Corruptions . | . . . . . . . . . . . . Robots Melted . | . . . . . . . . . . . . Combat Hostiles . | . . . . . . . . . . . . Parts Melted 2 | . 2 . . . . . . . . . . Heat Transferred 4001 | 518 3159 224 . . . 100 . . . . . Parts Sabotaged . | . . . . . . . . . . . . Parts Stolen . | . . . . . . . . . . . . Parts Stripped . | . . . . . . . . . . . . Power Chain Reactions 3 | . . 1 . . . 2 . . . . . Alert | -11 -10 -10 -10 -7 -7 -5 -5 -5 -4 -3 -2 ------- Run | Yrd Mat Min Sub Rec Scr Fac Upp Upp Fac Res Res Maximum Alert Level 1 | . 1 1 . . . 1 . . . . . Low Security (%) 90 | 100 73 81 . 100 . 94 . . 100 100 100 Level 1 9 | . 26 18 . . . 5 . . . . . Level 2 . | . . . . . . . . . . . . Level 3 . | . . . . . . . . . . . . Level 4 . | . . . . . . . . . . . . Level 5 . | . . . . . . . . . . . . High Security . | . . . . . . . . . . . . Max Security . | . . . . . . . . . . . . Peak Influence 281 | 10 281 277 . 51 . 215 . . 108 62 80 Initial 90 | . 3 90 . 51 . . . . . 27 . Average 63 | 2 108 104 . 11 . 68 . . 9 12 15 Influence Increases 2730 | 20 597 296 155 30 . 699 180 155 179 209 210 Destroy 0b10 Robot/C 1280 | . 320 200 80 . . 340 100 40 20 60 120 Destroy 0b10 Robot/NC 115 | 20 20 15 . . . 45 5 . . 5 5 Destroy Leader 278 | . 66 40 . . . 102 . 10 10 10 40 Successful Hack 158 | . 34 . . 30 . 26 . . 21 47 . Disable Machine 135 | . 15 . . . . 60 . . 60 . . Destroy Structure 269 | . 22 41 . . . 96 . . 68 42 . Partial Spotted 15 | . . . . . . 15 . . . . . Lose Combat Pursuer 480 | . 120 . 75 . . 15 75 105 . 45 45 Influence Decreases 2685 | 15 369 529 48 137 . 560 319 155 127 261 165 Entered New Map 278 | . 2 143 . 56 . . 52 . . 25 . Time Decay 2047 | 15 347 376 48 81 . 498 207 145 87 130 113 Lost Part 360 | . 20 10 . . . 62 60 10 40 106 52 Squads Dispatched 20 | . 3 . . . . 11 . . 3 1 2 Investigation 4 | . 2 . . . . 2 . . . . . Extermination 8 | . . . . . . 4 . . 1 1 2 Reinforcement 8 | . 1 . . . . 5 . . 2 . . Assault . | . . . . . . . . . . . . Garrison . | . . . . . . . . . . . . Intercept . | . . . . . . . . . . . . Searches Triggered . | . . . . . . . . . . . . Construction Impeded 2 | . . . . . . 1 . . 1 . . Haulers Reinforced 1 | . . . . . . 1 . . . . . Active Scanning Responses . | . . . . . . . . . . . . Cargo Convoy Interrupts . | . . . . . . . . . . . . Stealth | -11 -10 -10 -10 -7 -7 -5 -5 -5 -4 -3 -2 --------- Run | Yrd Mat Min Sub Rec Scr Fac Upp Upp Fac Res Res Distress Signals 7 | . 2 . . . . 3 . . . . 2 Communications Jammed . | . . . . . . . . . . . . Distress Signals . | . . . . . . . . . . . . Times Spotted 147 | . 35 10 10 . . 33 17 7 5 16 14 Peak Tracking Total 9 | . 6 5 4 . . 3 5 3 3 9 8 Tactical Retreats 22 | . 4 . 2 . . 1 4 5 . 3 3 Traps | -11 -10 -10 -10 -7 -7 -5 -5 -5 -4 -3 -2 ------- Run | Yrd Mat Min Sub Rec Scr Fac Upp Upp Fac Res Res Traps Triggered 6 | . 2 . . . . 1 2 . . . 1 Indirectly . | . . . . . . . . . . . . Trap Hack Attempts . | . . . . . . . . . . . . Triggered . | . . . . . . . . . . . . Disarmed . | . . . . . . . . . . . . Reprogrammed . | . . . . . . . . . . . . Reused 4 | . . . . . . . 4 . . . . Traps Extracted . | . . . . . . . . . . . . Installed 9 | . . . . . . . 9 . . . . Triggered 4 | . . . . . . . 4 . . . . Most Traps Carried 5 | . . . . . . . 5 . . . . Machines | -11 -10 -10 -10 -7 -7 -5 -5 -5 -4 -3 -2 ---------- Run | Yrd Mat Min Sub Rec Scr Fac Upp Upp Fac Res Res Machines Disabled 13 | . 1 . 3 . . 4 1 . 4 . . Max in Single Turn 4 | . 1 . 1 . . 2 1 . 4 . . Garrison Access 3 | . . . . . . 1 . . 1 1 . Machines Repaired . | . . . . . . . . . . . . Machines Dismantled . | . . . . . . . . . . . . Machines Sabotaged . | . . . . . . . . . . . . Overloaded Fab Kills . | . . . . . . . . . . . . Hacking | -11 -10 -10 -10 -7 -7 -5 -5 -5 -4 -3 -2 --------- Run | Yrd Mat Min Sub Rec Scr Fac Upp Upp Fac Res Res Machines Accessed 42 | . 11 1 . 5 3 10 . . 3 7 2 Terminals 20 | . 8 . . 5 . 2 . . 1 3 1 Fabricators 1 | . . . . . . . . . 1 . . Repair Stations 6 | . 1 . . . . 4 . . . 1 . Recycling Units 5 | . 2 . . . . 2 . . . . 1 Scanalyzers 3 | . . . . . . 1 . . . 2 . Garrison Access 3 | . . . . . . 1 . . 1 1 . Total Hacks 102 | . 24 1 . 9 7 23 . . 7 28 3 Successful 59 | . 12 1 . 4 7 15 . . 2 18 . Failed 43 | . 12 . . 5 . 8 . . 5 10 3 Catastrophic 5 | . 1 . . 1 . . . . 1 1 1 Database Lockouts . | . . . . . . . . . . . . Manual 37 | . 14 . . 9 . 4 . . 1 7 2 Terminals 49 | . 20 . . 9 . 6 . . 3 9 2 Fabricators 2 | . . . . . . . . . 2 . . Repair Stations 11 | . 1 . . . . 7 . . . 3 . Recycling Units 9 | . 3 . . . . 5 . . . . 1 Scanalyzers 17 | . . . . . . 2 . . . 15 . Garrison Access 6 | . . . . . . 3 . . 2 1 . Terminal Hacks 19 | . 7 1 . . 7 3 . . . 1 . Record 1 | . . . . . 1 . . . . . . Part Schematic 1 | . 1 . . . . . . . . . . Robot Analysis 7 | . 2 . . . 5 . . . . . . Prototype ID Bank 1 | . 1 . . . . . . . . . . Open Door 1 | . . 1 . . . . . . . . . Branch Access Points 1 | . . . . . . . . . . 1 . Terminal Index 1 | . . . . . . 1 . . . . . Locate Traps 3 | . 2 . . . . 1 . . . . . Recall Reinforcements 1 | . . . . . . 1 . . . . . Hauler Manifests 1 | . 1 . . . . . . . . . . Proto ID Catalog 1 | . . . . . 1 . . . . . . Fabricator Hacks . | . . . . . . . . . . . . Repair Station Hacks 5 | . . . . . . 3 . . . 2 . Scan Component 3 | . . . . . . 2 . . . 1 . Repair 2 | . . . . . . 1 . . . 1 . Recycling Unit Hacks 2 | . . . . . . 2 . . . . . Retrieve Components 2 | . . . . . . 2 . . . . . Scanalyzer 13 | . . . . . . 2 . . . 11 . Insert Component 7 | . . . . . . 1 . . . 6 . Analyze 6 | . . . . . . 1 . . . 5 . Garrison Access Hacks 3 | . . . . . . 1 . . 1 1 . Seal Access 3 | . . . . . . 1 . . 1 1 . Unauthorized Hacks 17 | . 5 . . 4 . 4 . . 1 3 . Terminals 13 | . 3 . . 4 . 2 . . 1 3 . Botnet 13 | . 3 . . 4 . 2 . . 1 3 . Fabricators . | . . . . . . . . . . . . Repair Stations 1 | . 1 . . . . . . . . . . Mechanics 1 | . 1 . . . . . . . . . . Recycling Units 3 | . 1 . . . . 2 . . . . . Reject 1 | . 1 . . . . . . . . . . Fedlink 2 | . . . . . . 2 . . . . . Scanalyzers . | . . . . . . . . . . . . Garrison Access . | . . . . . . . . . . . . Data Cores Recovered . | . . . . . . . . . . . . Used . | . . . . . . . . . . . . Hacking Detections 34 | . 11 . . 5 . 8 . . 2 6 2 Full Trace Events . | . . . . . . . . . . . . Feedback Events . | . . . . . . . . . . . . Feedback Blocked . | . . . . . . . . . . . . Robot Schematics Acquired . | . . . . . . . . . . . . Robots Built . | . . . . . . . . . . . . Authchips . | . . . . . . . . . . . . Time . | . . . . . . . . . . . . Total Robot Build Rating . | . . . . . . . . . . . . Part Schematics Acquired 5 | . 1 . . . . 1 . . . 3 . Parts Built . | . . . . . . . . . . . . Authchips . | . . . . . . . . . . . . Time . | . . . . . . . . . . . . Total Part Build Rating . | . . . . . . . . . . . . Parts Repaired 2 | . . . . . . 1 . . . 1 . Time 63 | . . . . . . 44 . . . 19 . Parts Recycled . | . . . . . . . . . . . . Recycled Matter . | . . . . . . . . . . . . Retrieved Matter . | . . . . . . . . . . . . Retrieved Components 12 | . . . . . . 12 . . . . . Parts Scanalyzed 4 | . . . . . . 1 . . . 3 . Part Schematics Acquired 4 | . . . . . . 1 . . . 3 . Parts Damaged 1 | . . . . . . . . . . 1 . Bothacking | -11 -10 -10 -10 -7 -7 -5 -5 -5 -4 -3 -2 ------------ Run | Yrd Mat Min Sub Rec Scr Fac Upp Upp Fac Res Res Used RIF Installer . | . . . . . . . . . . . . Robots Hacked . | . . . . . . . . . . . . Non-combat . | . . . . . . . . . . . . Combat . | . . . . . . . . . . . . Robot Hacks Applied . | . . . . . . . . . . . . Relay Couplers Released 3 | . . . . . . . . . 3 . . Machine Destruction 3 | . . . . . . . . . 3 . . Fabnet Peak Effective % . | . . . . . . . . . . . . Robots Rewired 1 | . . . . . . . 1 . . . . Allies Hacked . | . . . . . . . . . . . . Hacks Repelled . | . . . . . . . . . . . . Allies | -11 -10 -10 -10 -7 -7 -5 -5 -5 -4 -3 -2 -------- Run | Yrd Mat Min Sub Rec Scr Fac Upp Upp Fac Res Res Total Allies 1 | . . . . . . . 1 . . . . Largest Group 1 | . . . . . . . 1 . . . . Highest-Rated Group 29 | . . . . . . . 29 . . . . Highest-Rated Ally 29 | . . . . . . . 29 . . . . Total Orders 1 | . . . . . . . 1 . . . . EXPLORE 1 | . . . . . . . 1 . . . . Ally Attacks 4 | . . . . . . . 4 . . . . Total Damage 79 | . . . . . . . 79 . . . . Kills 1 | . . . . . . . 1 . . . . Allies Corrupted . | . . . . . . . . . . . . Allies Melted . | . . . . . . . . . . . . Intel | -11 -10 -10 -10 -7 -7 -5 -5 -5 -4 -3 -2 ------- Run | Yrd Mat Min Sub Rec Scr Fac Upp Upp Fac Res Res Active Infowar (turns) 7534 | . 329 599 426 . . 2937 1358 369 632 402 482 Sensors 2362 | . . . . . . 2193 169 . . . . Terrain 3488 | . . . . . . 743 1342 369 632 402 . Seismic 1801 | . 329 599 426 . . 447 . . . . . Jamming 1 | . . . . . . 1 . . . . . ECM 482 | . . . . . . . . . . . 482 Robot Analysis Total 7 | . 2 . . . 5 . . . . . . Derelict Logs Recovered 4 | . . 1 . . 3 . . . . . . Drone Launches 1 | . . . . . . . 1 . . . . Drone Recoveries . | . . . . . . . . . . . . Exploration | -11 -10 -10 -10 -7 -7 -5 -5 -5 -4 -3 -2 ------------- Run | Yrd Mat Min Sub Rec Scr Fac Upp Upp Fac Res Res Turns Passed 12705 | 117 1418 1039 650 438 1473 2944 2513 392 632 463 626 Spaces Moved 7839 | 74 1072 823 503 360 1147 1377 1202 192 371 311 407 Core 65 | 3 . . . . . . . . . . 62 Treads 892 | . . . . . . 891 . . . . 1 Legs 2269 | . . . . . . 226 1202 192 371 278 . Wheels 4613 | 71 1072 823 503 360 1147 260 . . . 33 344 Hover . | . . . . . . . . . . . . Flight . | . . . . . . . . . . . . Fastest Speed 50 | 50 100 115 115 115 115 115 130 130 120 105 50 Average Speed 136 | 97 104 115 115 115 125 153 195 155 143 118 109 Slowest Speed 240 | 100 115 115 115 115 145 220 220 220 220 190 240 Overloaded Moves . | . . . . . . . . . . . . Propulsion Burnouts . | . . . . . . . . . . . . Robots Hopped . | . . . . . . . . . . . . Potential Cave-ins . | . . . . . . . . . . . . Cave-ins Triggered . | . . . . . . . . . . . . Exploration Rate (%) 43 | 6 97 99 19 60 89 23 79 18 9 11 10 Regions Visited 11 Branch Regions 6 Pre-discovered Areas 2 | . . 1 . . . 1 . . . . . Known Exits Taken 6 | . . 1 . . . 1 1 1 1 1 . Unknown Exits Taken 5 | 1 1 . 1 1 1 . . . . . . Scrap Searched 10 | . . 2 . . 5 . 3 . . . . Spaces Dug 49 | . . 8 9 . . 14 . . 10 8 . Terrain Destroyed 392 | . 16 61 182 . . 53 . 3 46 21 10 Melee 31 | . . . . . . 13 . . 10 8 . Projectile 12 | . . . . . . 2 . . . . 10 AOE 346 | . 16 61 182 . . 38 . . 36 13 . Terrain Rammed . | . . . . . . . . . . . . Walls Destroyed . | . . . . . . . . . . . . Machines Disabled . | . . . . . . . . . . . . Actions | -11 -10 -10 -10 -7 -7 -5 -5 -5 -4 -3 -2 --------- Run | Yrd Mat Min Sub Rec Scr Fac Upp Upp Fac Res Res Total 9323 | 97 1269 884 546 385 1191 2036 1339 244 441 375 516 Wait 582 | . 76 20 1 20 . 396 22 2 2 19 24 Move 7828 | 73 1071 822 502 359 1146 1376 1201 191 370 310 407 Hop . | . . . . . . . . . . . . Pick Up 151 | 7 27 5 5 2 22 34 12 3 13 6 15 Fast Attach 57 | 7 2 . . . . 17 14 1 6 2 8 Attach 66 | . 2 1 . . . 23 8 3 5 11 13 Detach 24 | 1 1 . . . . 6 9 1 1 4 1 Swap 92 | . 16 13 4 1 4 28 12 3 3 3 5 Drop 112 | . 18 5 4 3 19 29 16 . 14 . 4 Fire 273 | 9 56 18 30 . . 59 10 39 12 3 37 Melee 111 | . . . . . . 68 10 1 15 17 . Ram 2 | . . . . . . . . . . . 2 Kick . | . . . . . . . . . . . . Crush . | . . . . . . . . . . . . Escape Stasis . | . . . . . . . . . . . . Rewire 15 | . . . . . . . 15 . . . . Trap 9 | . . . . . . . 9 . . . . Miscellaneous 1 | . . . . . . . 1 . . . . Route ------- -11/Scrapyard -10/Materials (discovered 4 exits: [*Mat x3] / *Min) -10/Mines (discovered 4 exits: [*Mat x2] / [*Exi] / *Sub) -10/Subcaves (discovered 2 exits: [*Mat] / *Rec) -7/Recycling -7/Scraptown (discovered 2 exits: *Fac x2) -5/Factory -5/Upper Caves -5/Upper Caves -4/Factory -3/Research (discovered 3 exits: *Res / Tes x2) -2/Research History --------- Turn | Location | Event 15 | -11/Scrapyard | Discovered new exit (range 16) 118 | -11/Scrapyard | Entered Materials 206 | -10/Materials | Discovered new exit (range 16) 315 | -10/Materials | Build established: Mutant 828 | -10/Materials | Discovered new exit (range 5) 1359 | -10/Materials | Discovered new exit (range 10) 1435 | -10/Materials | Discovered new exit (range 8) 1536 | -10/Materials | Entered Mines 1601 | -10/Mines | Found the Drone Emporium 1626 | -10/Mines | Core integrity fell below 50% 1654 | -10/Mines | Found Prototype Device 1800 | -10/Mines | Discovered new exit (range 6) 1801 | -10/Mines | Learned location of Storage (-7) 1909 | -10/Mines | Discovered new exit (range 7) 1942 | -10/Mines | Found DCF Scrap (11 items) 2076 | -10/Mines | Discovered new exit (range 6) 2144 | -10/Mines | Learned 2 Materials zone layouts 2151 | -10/Mines | Deemed a non-threat by the Exiles lab entrance 2152 | -10/Mines | Discovered new exit (range 5) 2573 | -10/Mines | Identified exit to Subcaves 2575 | -10/Mines | Entered Subcaves 2620 | -10/Subcaves | Discovered new exit (range 15) 2630 | -10/Subcaves | Ambushed by Subdweller buried in earth 2707 | -10/Subcaves | A swath of the cavern ceiling suddenly collapsed 3006 | -10/Subcaves | Core integrity fell below 20% 3091 | -10/Subcaves | Ambushed by Subdwellers from Twisted Machinery 3148 | -10/Subcaves | Discovered new exit (range 9) 3225 | -10/Subcaves | Entered Recycling 3635 | -7/Recycling | Scanned before Scraplab entrance 3651 | -7/Recycling | Entered Scraplab 3660 | -7/Recycling | Discovered new exit (range 3) 3663 | -7/Recycling | Entered Scraptown 3708 | -7/Scraptown | Heard Great Nut preacher, LISTEN AND RECITE! 3737 | -7/Scraptown | Received an X-ray algorithm 3737 | -7/Scraptown | Visited Fellowship of the Rings 3756 | -7/Scraptown | Visited Cave Peace 3801 | -7/Scraptown | Scanned Subdweller tech in exchange for log data 3805 | -7/Scraptown | Learned Research machine intel 3806 | -7/Scraptown | Learned Research trap positions 3807 | -7/Scraptown | Learned Research garrison access intel 3848 | -7/Scraptown | Discovered new exit (range 13) 4173 | -7/Scraptown | Visited CPS Storage 4196 | -7/Scraptown | Visited Spacefarers 4235 | -7/Scraptown | Visited SPCMW 4262 | -7/Scraptown | Visited Shadow of the Wyrm 4321 | -7/Scraptown | Visited Cyclists 4342 | -7/Scraptown | Visited UFD Registry 4342 | -7/Scraptown | Registered with UFD as "Wrenchwarp" 4372 | -7/Scraptown | Entered Cyclist Reading Room 4427 | -7/Scraptown | Visited Science Testing Area 4475 | -7/Scraptown | Visited Supply Room 4495 | -7/Scraptown | Visited Scrap Suit Storage 4517 | -7/Scraptown | Visited Derelict Rescue Squad 4525 | -7/Scraptown | Found DRS Beacon 4546 | -7/Scraptown | Visited DA-N13 Charitable Foundation 4559 | -7/Scraptown | Found DCF Scrap (30 items) 4628 | -7/Scraptown | Visited Infowarlord's Domain 4636 | -7/Scraptown | Found Exp. Terrain Scanner 4663 | -7/Scraptown | Visited Science Guys 4713 | -7/Scraptown | Visited Analyses Database 4904 | -7/Scraptown | Build established: Derelict-Mutant 5028 | -7/Scraptown | Found Scrap Suit 5064 | -7/Scraptown | Met Optimus 5064 | -7/Scraptown | Accepted into 0bPrime 5130 | -7/Scraptown | Discovered new exit (range 5) 5136 | -7/Scraptown | Entered Factory 5136 | -5/Factory | Evolved 10 slots: Power x1, Propulsion x2, Utility x7 5136 | -5/Factory | Identified Decoy Drone Bay 5226 | -5/Factory | Discovered new exit (range 29) 5307 | -5/Factory | Loaded intel: 8 recycling unit locations 5433 | -5/Factory | System corruption reached 10% 5459 | -5/Factory | Lost 3 parts (2n1u) 5633 | -5/Factory | Lost 5 parts (2n3u) 6257 | -5/Factory | Identified exit to Upper Caves 6729 | -5/Factory | Repaired Mak. Light Armor Plating 7452 | -5/Factory | Learned location of Protoforge (-2) 7636 | -5/Factory | Build established: Mutant 8080 | -5/Factory | Entered Upper Caves 8170 | -5/Upper Caves | Attracted the attention of an 0b10 outpost 8199 | -5/Upper Caves | System corruption reached 30% 8235 | -5/Upper Caves | Lost 4 parts (3u1w) 8406 | -5/Upper Caves | Activated DRS Beacon 8832 | -5/Upper Caves | Spotted B-75 Beast 8976 | -5/Upper Caves | Build established: Hacker-Mutant 9013 | -5/Upper Caves | Found DCF Scrap (15 items) 10016 | -5/Upper Caves | Build established: Mutant 10575 | -5/Upper Caves | Discovered new exit (range 13) 10589 | -5/Upper Caves | Identified exit to Upper Caves 10593 | -5/Upper Caves | Entered another Upper Caves area 10921 | -5/Upper Caves | Discovered new exit (range 5) 10928 | -5/Upper Caves | Identified exit to Factory 10985 | -5/Upper Caves | Entered Factory 10985 | -4/Factory | Evolved 2 slots: Utility x2 11282 | -4/Factory | Build established: Hacker-Mutant 11431 | -4/Factory | Spotted B-86 Titan 11583 | -4/Factory | Discovered new exit (range 11) 11616 | -4/Factory | Identified exit to Research 11617 | -4/Factory | Entered Research 11617 | -3/Research | Evolved 2 slots: Utility x2 11618 | -3/Research | Loaded intel: 71 trap records 11619 | -3/Research | Loaded intel: 115 machine locations 11620 | -3/Research | Loaded intel: 4 garrison access locations 11647 | -3/Research | Lost 4 parts (1p2n1w) 11669 | -3/Research | Identified exit to Testing 11726 | -3/Research | Repaired Imp. Terrain Scanner 11824 | -3/Research | Spotted B-86 Titan 11966 | -3/Research | Discovered new exit (range 15) 12079 | -3/Research | Identified exit to Research 12080 | -3/Research | Entered another Research area 12080 | -2/Research | Evolved 2 slots: Utility x2 12105 | -2/Research | Lost 16 parts (2p6n6u2w) 12307 | -2/Research | Build established: Mutant 12614 | -2/Research | Spotted B-90 Cyclops 12649 | -2/Research | System corruption reached 10% 12669 | -2/Research | Core integrity fell below 50% 12673 | -2/Research | Released all parts (5) 12678 | -2/Research | Core integrity fell below 20% 12704 | -2/Research | Lost 24 parts (4p5n9u6w) 12706 | -2/Research | Destroyed by P-80 Master with Gamma Rifle Last Messages --------------- 12673_ Released Imp. Melee Analysis Suite. 12673_ Released Adv. Target Analyzer. 12674_ Critical hit (Meltdown: +390). 12675_ R-10 Processor collects Imp. Energy Well. 12676_ Slammed into U-05 Engineer. 12676_ Destabilizing: Core damaged (-14). 12677_ R-10 Processor collects Lrn. Proton Cannon. 12677_ P-80 Master resets H-88 Terminator, system corruption cleaned. 12679_ R-10 Processor collects Linear Accelerator. 12680_ R-10 Processor collects Adv. Recalibrator. 12682_ U-05 Engineer builds a Door. 12682_ K-01 Serf cleans the Fabricator. 12686_ K